fUSD/lending_fUSD_20260219
["ID","MTS","AMOUNT","RATE_DAILY","PERIOD"]
[405969803,1771475432897,-500.0,8.593e-05,2]
[405969804,1771475432906,-500.0,8.593e-05,2]
[405969805,1771475432915,-500.0,8.593e-05,2]
[405969806,1771475432925,-500.0,8.593e-05,2]
[405969807,1771475432935,-500.0,8.593e-05,2]
[405969808,1771475432944,-500.0,8.593e-05,2]
[405969809,1771475432954,-500.0,8.593e-05,2]
[405969810,1771475432963,-500.0,8.593e-05,2]
[405969811,1771475432973,-500.0,8.593e-05,2]
[405969812,1771475432983,-500.0,8.593e-05,2]
[405969813,1771475432993,-500.0,8.593e-05,2]
[405969814,1771475433002,-500.0,8.593e-05,2]
[405969815,1771475433012,-500.0,8.593e-05,2]
[405969816,1771475433022,-500.0,8.593e-05,2]
[405969817,1771475433032,-500.0,8.593e-05,2]
[405969818,1771475433042,-500.0,8.593e-05,2]
[405969819,1771475433052,-500.0,8.593e-05,2]
[405969820,1771475433062,-500.0,8.593e-05,2]
[405969821,1771475433071,-500.0,8.593e-05,2]
[405969822,1771475433081,-500.0,8.593e-05,2]
[405969823,1771475433090,-500.0,8.593e-05,2]
[405969824,1771475433100,-500.0,8.593e-05,2]
[405969825,1771475433109,-500.0,8.593e-05,2]
[405969826,1771475433119,-500.0,8.593e-05,2]
[405969827,1771475433128,-500.0,8.593e-05,2]
[405969828,1771475433138,-500.0,8.593e-05,2]
[405969829,1771475433148,-500.0,8.593e-05,2]
[405969830,1771475433158,-500.0,8.593e-05,2]
[405969831,1771475433168,-500.0,8.593e-05,2]
[405969832,1771475433178,-500.0,8.593e-05,2]
[405969833,1771475433188,-500.0,8.593e-05,2]
[405969834,1771475433199,-406.64274506,8.593e-05,2]
[405969835,1771475433209,-500.0,8.593e-05,2]
[405969836,1771475433220,-500.0,8.593e-05,2]
[405969837,1771475433229,-590.6642745,8.593e-05,2]
[405969838,1771475433240,-500.0,8.593e-05,2]
[405969839,1771475433252,-500.0,8.593e-05,2]
[405969840,1771475433262,-500.0,8.593e-05,2]
[405969841,1771475433273,-500.0,8.593e-05,2]
[405969842,1771475433282,-500.0,8.593e-05,2]
[405969843,1771475433293,-500.0,8.593e-05,2]
[405969844,1771475433303,-500.0,8.593e-05,2]
[405969845,1771475433313,-500.0,8.593e-05,2]
[405969846,1771475433323,-500.0,8.593e-05,2]
[405969847,1771475433333,-500.0,8.593e-05,2]
[405969848,1771475433343,-500.0,8.593e-05,2]
[405969849,1771475433354,-500.0,8.593e-05,2]
[405969850,1771475433366,-500.0,8.593e-05,2]
[405969851,1771475433377,-45228.28244672,8.594e-05,2]
[405969852,1771475433390,-5927.78081976,8.594e-05,2]
[405969853,1771475433404,-11393.44313174,8.594e-05,2]
[405969856,1771475438127,-622.153193,8.594e-05,2]
[405969857,1771475438139,-352.98,8.594e-05,2]
[405969858,1771475438183,-2889.84169753,8.594e-05,2]
[405969859,1771475438194,-2418.07525,8.594e-05,2]
[405969860,1771475438243,-790.96257505,8.594e-05,2]
[405969861,1771475438299,-5575.90333579,8.594e-05,2]
[405969866,1771475440152,-1774275.76303962,8.594e-05,2]
[405969867,1771475440210,-412.0,8.594e-05,2]
[405969895,1771475528696,198.0,8.594e-05,3]
[405969897,1771475591211,198.0,8.594e-05,3]
[405969898,1771475664365,-535.015,8.422e-05,2]
[405969899,1771475704870,153.0,8.422e-05,3]
[405969900,1771476008531,153.0,8.422e-05,3]
[405969901,1771476096358,428.012,8.494e-05,2]
[405969902,1771476161277,150.0,0.00011233,120]
[405969903,1771476310651,154.0,8.422e-05,3]
[405969904,1771476609211,154.0,8.422e-05,3]
[405969905,1771476632183,-221.0,8.536e-05,2]
[405969906,1771476632192,-78.23478,8.536e-05,2]
[405969907,1771476632235,-720.05,8.536e-05,2]
[405969908,1771476632247,-351.06310345,8.536e-05,2]
[405969909,1771476632293,-543.4792702,8.536e-05,2]
[405969910,1771476632304,-3594.77284635,8.536e-05,2]
[405969911,1771476632313,-300.0,8.537e-05,2]
[405969912,1771476632323,-1200.0,8.537e-05,2]
[405969913,1771476632332,-5000.0,8.538e-05,2]
[405969914,1771476632341,-810.3034437,8.54e-05,2]
[405969915,1771476632351,-151.0,8.54e-05,2]
[405969916,1771476632360,-150.0,8.541e-05,2]
[405969917,1771476632369,-500.0,8.542e-05,2]
[405969918,1771476632379,-500.0,8.542e-05,2]
[405969919,1771476632388,-500.0,8.542e-05,2]
[405969920,1771476632398,-500.0,8.542e-05,2]
[405969921,1771476632407,-500.0,8.542e-05,2]
[405969923,1771476632416,-500.0,8.542e-05,2]
[405969925,1771476632426,-500.0,8.542e-05,2]
[405969927,1771476632435,-500.0,8.542e-05,2]
[405969929,1771476632445,-500.0,8.542e-05,2]
[405969931,1771476632454,-163.12501011,8.542e-05,2]
[405969933,1771476632466,-95.05941816,8.542e-05,2]
[405969935,1771476632475,-500.0,8.542e-05,2]
[405969937,1771476632485,-500.0,8.542e-05,2]
[405969939,1771476632494,-500.0,8.542e-05,2]
[405969941,1771476632503,-500.0,8.542e-05,2]
[405969943,1771476632513,-500.0,8.542e-05,2]
[405969945,1771476632522,-500.0,8.542e-05,2]
[405969947,1771476632531,-500.0,8.542e-05,2]
[405969949,1771476632540,-95.66601778,8.542e-05,2]
[405969950,1771476632552,-404.33398222,8.542e-05,2]
[405969951,1771476632561,-500.0,8.542e-05,2]
[405969952,1771476632571,-500.0,8.542e-05,2]
[405969953,1771476632581,-500.0,8.542e-05,2]
[405969954,1771476632590,-500.0,8.542e-05,2]
[405969955,1771476632600,-19591.72024735,8.543e-05,2]
[405969956,1771476632612,-483.60999621,8.543e-05,2]
[405969957,1771476632623,-1531.41477444,8.543e-05,2]
[405969958,1771476632635,-84373.17894978,8.543e-05,2]
[405969959,1771476632646,-11637.21174474,8.543e-05,2]
[405969960,1771476632657,-5877.51592635,8.543e-05,2]
[405969973,1771476638477,-2936.5044634,8.543e-05,2]
[405969974,1771476640354,-8823.4968359,8.543e-05,2]
[405969975,1771476640366,-8947.21879473,8.543e-05,2]
[405969976,1771476640377,-8943.78386462,8.543e-05,2]
[405969977,1771476640388,-9077.54866152,8.543e-05,2]
[405969992,1771476644768,-448.513652,8.543e-05,2]
[405969996,1771476646203,-1002.1425719,8.543e-05,2]
[405969998,1771476665398,99036.973,8.442e-05,2]
[405969999,1771476711958,-150.0,9.534e-05,12]
[405970000,1771476711981,-150.0,9.534e-05,12]
[405970001,1771476740991,-12.0,9.534e-05,12]
[405970006,1771477203914,150.0,8.315e-05,14]
[405970007,1771477218525,150.0,9.282e-05,12]
[405970008,1771477219324,191.0,9.282e-05,12]
[405970015,1771477831416,-150.0,8.103e-05,2]
[405970016,1771477831426,-300.0,8.12e-05,2]
[405970017,1771477831436,-1200.0,8.12e-05,2]
[405970018,1771477831446,-237.52207154,8.121e-05,2]
[405970019,1771477831475,-1672.81804228,8.121e-05,2]
[405970020,1771477831487,-758.78,8.121e-05,2]
[405970021,1771477831499,-865.07238644,8.121e-05,2]
[405970022,1771477831509,-294.25743567,8.121e-05,2]
[405970023,1771477831521,-5161.8712743,8.121e-05,2]
[405970025,1771477831541,-6832.10080246,8.121e-05,2]
[405970028,1771477831552,-1161.09214,8.121e-05,2]
[405970029,1771477831561,-151.0,8.128e-05,2]
[405970031,1771477831570,-300.0,8.13e-05,2]
[405970032,1771477831579,-150.0,8.13e-05,2]
[405970033,1771477831588,-3912.70564011,8.131e-05,2]
[405970034,1771477831599,-10749.43756616,8.131e-05,2]
[405970035,1771477831610,-1896.30695405,8.131e-05,2]
[405970036,1771477831621,-1129409.10687568,8.131e-05,2]
[405970037,1771477831632,-42874.64343603,8.131e-05,2]
[405970038,1771477831643,-135934.4107741,8.131e-05,2]
[405970039,1771477831655,-124990.30950833,8.131e-05,2]
[405970045,1771477837486,-21149.82390717,8.131e-05,2]
[405970046,1771477837497,-16212.59525944,8.131e-05,2]
[405970047,1771477837541,-4150.70316796,8.131e-05,2]
[405970048,1771477837598,-2181.6451335,8.131e-05,2]
[405970049,1771477837708,-2253.09560657,8.131e-05,2]
[405970050,1771477837719,-8150.2,8.131e-05,2]
[405970051,1771477837730,-1300.6176767,8.131e-05,2]
[405970108,1771477845600,-10023.9669867,8.131e-05,2]
[405970136,1771477896552,1161.888,7.968e-05,2]
[405970137,1771477897619,230.296,7.968e-05,2]
[405970138,1771478072756,500.0,7.469e-05,2]
[405970139,1771478109360,178.0,7.469e-05,3]
[405970140,1771478166295,6211.0,8e-05,2]
[405970141,1771478272077,91896.816,7.93e-05,2]
[405970142,1771478346356,1500.0,7.455e-05,2]
[405970151,1771478972422,378.0,7.128e-05,2]
[405970152,1771478995803,-300.0,7.726e-05,2]
[405970153,1771478995829,-675380.91,7.727e-05,2]
[405970154,1771479016599,267.0,8.781e-05,12]
[405970165,1771479031539,-151.0,7.724e-05,2]
[405970168,1771479031549,-1200.0,7.726e-05,2]
[405970171,1771479031558,-300.0,7.726e-05,2]
[405970173,1771479031567,-150.0,7.726e-05,2]
[405970175,1771479031577,-1032.23190387,7.727e-05,2]
[405970176,1771479031650,-51455.55047373,7.727e-05,2]
[405970177,1771479031661,-1367.37507571,7.727e-05,2]
[405970185,1771479037700,-562.53980319,7.726e-05,2]
[405970186,1771479037712,-500.0,7.726e-05,2]
[405970187,1771479037721,-345.06432009,7.726e-05,2]
[405970188,1771479037868,-154.93567991,7.726e-05,2]
[405970189,1771479037877,-500.0,7.726e-05,2]
[405970190,1771479037886,-431.50382059,7.726e-05,2]
[405970191,1771479037926,-68.49617941,7.726e-05,2]
[405970192,1771479037936,-542.70751625,7.726e-05,2]
[405970193,1771479037945,-500.0,7.726e-05,2]
[405970194,1771479037954,-500.0,7.726e-05,2]
[405970195,1771479037964,-38.79630434,7.726e-05,2]
[405970201,1771479039959,-293.7924625,7.726e-05,2]
[405970228,1771479043735,-167.41123316,7.726e-05,2]
[405970229,1771479043748,-500.0,7.726e-05,2]
[405970230,1771479043760,-500.0,7.726e-05,2]
[405970231,1771479043774,-500.0,7.726e-05,2]
[405970232,1771479043786,-500.0,7.726e-05,2]
[405970233,1771479043797,-32.58876684,7.726e-05,2]
[405970234,1771479044672,-467.41123316,7.726e-05,2]
[405970235,1771479044687,-500.0,7.726e-05,2]
[405970236,1771479044698,-500.0,7.726e-05,2]
[405970237,1771479044708,-500.0,7.726e-05,2]
[405970238,1771479044719,-500.0,7.726e-05,2]
[405970239,1771479044729,-500.0,7.726e-05,2]
[405970240,1771479044742,-527.96595688,7.726e-05,2]
[405970241,1771479045551,-9.25773901,7.726e-05,2]
[405970243,1771479045562,-500.0,7.726e-05,2]
[405970244,1771479045573,-500.0,7.726e-05,2]
[405970245,1771479045584,-263.5097727,7.726e-05,2]
[405970246,1771479045596,-500.0,7.726e-05,2]
[405970247,1771479045608,-423.7895213,7.726e-05,2]
[405970248,1771479045619,-500.0,7.726e-05,2]
[405970249,1771479045630,-500.0,7.726e-05,2]
[405970250,1771479045644,-500.0,7.726e-05,2]
[405970251,1771479045655,-500.0,7.726e-05,2]
[405970252,1771479045667,-279.52863859,7.726e-05,2]
[405970253,1771479045679,-500.0,7.726e-05,2]
[405970254,1771479045690,-500.0,7.726e-05,2]
[405970255,1771479045701,-500.0,7.726e-05,2]
[405970256,1771479045714,-500.0,7.726e-05,2]
[405970257,1771479045725,-500.0,7.726e-05,2]
[405970258,1771479045735,-500.0,7.726e-05,2]
[405970259,1771479045747,-500.0,7.726e-05,2]
[405970260,1771479045758,-500.0,7.726e-05,2]
[405970261,1771479045768,-500.0,7.726e-05,2]
[405970262,1771479045779,-500.0,7.726e-05,2]
[405970263,1771479045790,-500.0,7.726e-05,2]
[405970264,1771479045801,-500.0,7.726e-05,2]
[405970265,1771479045813,-500.0,7.726e-05,2]
[405970266,1771479045824,-500.0,7.726e-05,2]
[405970267,1771479045837,-500.0,7.726e-05,2]
[405970268,1771479045849,-500.0,7.726e-05,2]
[405970269,1771479045859,-500.0,7.726e-05,2]
[405970270,1771479045870,-163.02737853,7.726e-05,2]
[405970275,1771479045951,-336.97262147,7.726e-05,2]
[405970276,1771479045962,-500.0,7.726e-05,2]
[405970277,1771479045972,-500.0,7.726e-05,2]
[405970278,1771479045983,-500.0,7.726e-05,2]
[405970279,1771479045995,-260.05077885,7.726e-05,2]
[405970280,1771479046024,-239.94922115,7.726e-05,2]
[405970281,1771479046035,-500.0,7.726e-05,2]
[405970282,1771479046046,-500.0,7.726e-05,2]
[405970283,1771479046056,-500.0,7.726e-05,2]
[405970284,1771479046067,-104.82242906,7.726e-05,2]
[405970287,1771479097036,1600.0,7.337e-05,2]
[405970289,1771479696439,929.51,7.375e-05,2]
[405970290,1771479728745,201.40621561,7.498e-05,2]
[405970291,1771480077750,500.0,7.259e-05,2]
[405970293,1771480206315,887.42,7.266e-05,2]
[405970297,1771480231741,-1200.0,7.523e-05,2]
[405970298,1771480231751,-214.0,7.523e-05,2]
[405970299,1771480231761,-506.79,7.524e-05,2]
[405970300,1771480231770,-2726.717632,7.524e-05,2]
[405970301,1771480231799,-109.72859591,7.524e-05,2]
[405970302,1771480231808,-1278.1228,7.526e-05,2]
[405970303,1771480231818,-300.0,7.625e-05,2]
[405970304,1771480231827,-300.0,7.625e-05,2]
[405970305,1771480231835,-300.0,7.625e-05,2]
[405970306,1771480231845,-4130.002,7.626e-05,2]
[405970307,1771480231854,-53407.0744,7.626e-05,2]
[405970308,1771480231863,-2745.0,7.699e-05,2]
[405970309,1771480231873,-151.0,7.723e-05,2]
[405970310,1771480231882,-151.0,7.723e-05,2]
[405970311,1771480231891,-150.0,7.725e-05,2]
[405970312,1771480231900,-921.55390403,7.726e-05,2]
[405970313,1771480231910,-12114.9452262,7.726e-05,2]
[405970314,1771480231919,-5202.8009697,7.726e-05,2]
[405970315,1771480231928,-7660.745126,7.726e-05,2]
[405970316,1771480231937,-999.99,7.726e-05,2]
[405970317,1771480231946,-299.99,7.726e-05,2]
[405970318,1771480231956,-97874.73084134,7.726e-05,2]
[405970319,1771480231967,-79371.47303498,7.726e-05,2]
[405970320,1771480231978,-14348.92612368,7.726e-05,2]
[405970321,1771480231988,-2965.88532717,7.726e-05,2]
[405970325,1771480232283,-446.90007245,7.726e-05,2]
[405970330,1771480240276,-1091.00000001,7.726e-05,2]
[405970331,1771480240332,-1059.80161734,7.726e-05,2]
[405970341,1771480244933,-2255.445,7.726e-05,2]
[405970352,1771480245756,-2180.95798303,7.726e-05,2]
[405970353,1771480245766,-5112.00415009,7.726e-05,2]
[405970356,1771480301730,-4887.98584991,7.726e-05,2]
[405970357,1771480301758,-4242.75,7.726e-05,2]
[405970358,1771480301784,-150.99,7.726e-05,2]
[405970359,1771480301810,-2773.27,7.726e-05,2]
[405970360,1771480301835,-506.79,7.798e-05,2]
[405970361,1771480301860,-304.12596972,7.808e-05,2]
[405970362,1771480301886,-4156.0,7.89e-05,2]
[405970363,1771480330265,2096.7839,7.626e-05,2]
[405970364,1771480463286,80881.30428037,7.526e-05,2]
[405970365,1771480463313,100000.0,7.526e-05,2]
[405970366,1771480495831,-500.0,7.525e-05,2]
[405970367,1771480495867,-500.0,7.525e-05,2]
[405970368,1771480495894,-407.55599602,7.525e-05,2]
[405970369,1771480495923,-339.17416675,7.525e-05,2]
[405970370,1771480495947,-364.39207095,7.525e-05,2]
[405970371,1771480495972,-213.75439126,7.525e-05,2]
[405970372,1771480495997,-504.13596621,7.525e-05,2]
[405970373,1771480496024,-500.0,7.525e-05,2]
[405970374,1771480496052,-500.0,7.525e-05,2]
[405970375,1771480496083,-500.0,7.525e-05,2]
[405970376,1771480496110,-500.0,7.525e-05,2]
[405970377,1771480496138,-500.0,7.525e-05,2]
[405970378,1771480496164,-500.0,7.525e-05,2]
[405970379,1771480496190,-500.0,7.525e-05,2]
[405970380,1771480496216,-500.0,7.525e-05,2]
[405970381,1771480496243,-500.0,7.525e-05,2]
[405970382,1771480496272,-500.0,7.525e-05,2]
[405970383,1771480496298,-500.0,7.525e-05,2]
[405970384,1771480496325,-500.0,7.525e-05,2]
[405970385,1771480496351,-500.0,7.525e-05,2]
[405970386,1771480496378,-500.0,7.525e-05,2]
[405970387,1771480496407,-500.0,7.525e-05,2]
[405970388,1771480496435,-500.0,7.525e-05,2]
[405970389,1771480496463,-500.0,7.525e-05,2]
[405970390,1771480496491,-500.0,7.525e-05,2]
[405970391,1771480496517,-500.0,7.525e-05,2]
[405970392,1771480496546,-500.0,7.525e-05,2]
[405970393,1771480496573,-500.0,7.525e-05,2]
[405970394,1771480496600,-500.0,7.525e-05,2]
[405970395,1771480496625,-500.0,7.525e-05,2]
[405970396,1771480496654,-500.0,7.525e-05,2]
[405970397,1771480496681,-500.0,7.525e-05,2]
[405970398,1771480496707,-500.0,7.525e-05,2]
[405970399,1771480496733,-500.0,7.525e-05,2]
[405970400,1771480496759,-255.8823266,7.525e-05,2]
[405970401,1771480496785,-500.0,7.525e-05,2]
[405970402,1771480496812,-500.0,7.525e-05,2]
[405970403,1771480496839,-500.0,7.525e-05,2]
[405970404,1771480496866,-500.0,7.525e-05,2]
[405970405,1771480496892,-500.0,7.525e-05,2]
[405970406,1771480496917,-500.0,7.525e-05,2]
[405970407,1771480496944,-500.0,7.525e-05,2]
[405970408,1771480496970,-500.0,7.525e-05,2]
[405970409,1771480496996,-500.0,7.525e-05,2]
[405970410,1771480497022,-500.0,7.525e-05,2]
[405970411,1771480497048,-500.0,7.525e-05,2]
[405970412,1771480497084,-500.0,7.525e-05,2]
[405970413,1771480497120,-500.0,7.525e-05,2]
[405970414,1771480497146,-500.0,7.525e-05,2]
[405970415,1771480497171,-500.0,7.525e-05,2]
[405970416,1771480497416,-500.0,7.525e-05,2]
[405970417,1771480497446,-500.0,7.525e-05,2]
[405970418,1771480497472,-500.0,7.525e-05,2]
[405970419,1771480497499,-500.0,7.525e-05,2]
[405970420,1771480497533,-500.0,7.525e-05,2]
[405970421,1771480497560,-500.0,7.525e-05,2]
[405970422,1771480497586,-500.0,7.525e-05,2]
[405970423,1771480497611,-500.0,7.525e-05,2]
[405970424,1771480497638,-500.0,7.525e-05,2]
[405970425,1771480497665,-500.0,7.525e-05,2]
[405970426,1771480497694,-500.0,7.525e-05,2]
[405970427,1771480497724,-500.0,7.525e-05,2]
[405970428,1771480497750,-500.0,7.525e-05,2]
[405970429,1771480497778,-69415.10508221,7.526e-05,2]
[405970430,1771480497817,-100000.0,7.526e-05,2]
[405970431,1771480497932,-100000.0,7.526e-05,2]
[405970432,1771480498390,-100000.0,7.526e-05,2]
[405970433,1771480499762,-100000.0,7.526e-05,2]
[405970434,1771480501168,-100000.0,7.526e-05,2]
[405970435,1771480502694,-300.0,7.525e-05,2]
[405970436,1771480502721,-1200.0,7.525e-05,2]
[405970437,1771480502748,-98500.0,7.526e-05,2]
[405970438,1771480504732,-100000.0,7.526e-05,2]
[405970439,1771480536294,10906.20934169,7.426e-05,2]
[405970440,1771480557879,-250.84676906,7.525e-05,2]
[405970441,1771480557906,-99749.15323094,7.526e-05,2]
[405970442,1771480573188,167.0,7.526e-05,3]
[405970443,1771480626295,167.0,7.526e-05,3]
[405970444,1771480900916,871.0,0.00019,120]
[405970450,1771481006886,1500.0,7.38e-05,2]
[405970451,1771481114153,438.29,7.358e-05,2]
[405970453,1771481431968,-214.0,7.503e-05,2]
[405970454,1771481431978,-200.0,7.503e-05,2]
[405970455,1771481431988,-150.0,7.522e-05,2]
[405970456,1771481431998,-300.0,7.522e-05,2]
[405970457,1771481432007,-1200.0,7.522e-05,2]
[405970458,1771481432017,-9106.86862714,7.523e-05,2]
[405970459,1771481432079,-50416.21137286,7.523e-05,2]
[405970460,1771481432089,-5624.77,7.614e-05,2]
[405970461,1771481432098,-250.0,7.776e-05,2]
[405970462,1771481432108,-166.66,7.78e-05,2]
[405970463,1771481432118,-239.0,8.036e-05,2]
[405970464,1771481432127,-166.66,8.037e-05,2]
[405970465,1771481432137,-578.20924308,8.045e-05,2]
[405970466,1771481432147,-250.0,8.045e-05,2]
[405970467,1771481432156,-250.0,8.045e-05,2]
[405970468,1771481432165,-277.35679052,8.045e-05,2]
[405970469,1771481432175,-250.0,8.045e-05,2]
[405970470,1771481432183,-250.0,8.045e-05,2]
[405970471,1771481432193,-250.0,8.045e-05,2]
[405970472,1771481432202,-250.0,8.045e-05,2]
[405970473,1771481432211,-137.71279314,8.045e-05,2]
[405970474,1771481432225,-112.28720686,8.045e-05,2]
[405970475,1771481432234,-259.05495974,8.045e-05,2]
[405970476,1771481432244,-176.96955002,8.045e-05,2]
[405970477,1771481432253,-721.12765535,8.045e-05,2]
[405970478,1771481432262,-151.0,8.045e-05,2]
[405970479,1771481432271,-162.380719,8.045e-05,2]
[405970480,1771481432282,-788.67990903,8.045e-05,2]
[405970481,1771481432811,-211.32009097,8.045e-05,2]
[405970482,1771481432821,-233.13973207,8.045e-05,2]
[405970483,1771481438182,-766.86026793,8.045e-05,2]
[405970484,1771481438191,-545.58959201,8.045e-05,2]
[405970485,1771481438276,-301.22878301,8.045e-05,2]
[405970486,1771481438288,-153.18162498,8.045e-05,2]
[405970487,1771481438298,-1000.0,8.045e-05,2]
[405970488,1771481438307,-1000.0,8.045e-05,2]
[405970489,1771481438316,-696.03895248,8.045e-05,2]
[405970490,1771481438325,-111.75904716,8.045e-05,2]
[405970491,1771481438337,-138.24095284,8.045e-05,2]
[405970492,1771481438346,-292.42866958,8.045e-05,2]
[405970493,1771481438357,-167.4563313,8.045e-05,2]
[405970495,1771481438369,-174.61919141,8.045e-05,2]
[405970497,1771481438379,-209.40437684,8.045e-05,2]
[405970500,1771481438399,-693.3919763,8.045e-05,2]
[405970501,1771481438410,-500.0,8.045e-05,2]
[405970502,1771481438420,-500.0,8.045e-05,2]
[405970503,1771481438430,-269.23296071,8.045e-05,2]
[405970505,1771481440482,-230.76703929,8.045e-05,2]
[405970506,1771481440492,-500.0,8.045e-05,2]
[405970507,1771481440502,-500.0,8.045e-05,2]
[405970508,1771481440511,-471.57611546,8.045e-05,2]
[405970514,1771481443916,-28.42388454,8.045e-05,2]
[405970515,1771481443927,-500.0,8.045e-05,2]
[405970516,1771481443936,-500.0,8.045e-05,2]
[405970517,1771481443946,-500.0,8.045e-05,2]
[405970519,1771481443957,-500.0,8.045e-05,2]
[405970520,1771481443966,-500.0,8.045e-05,2]
[405970521,1771481443977,-500.0,8.045e-05,2]
[405970522,1771481443986,-500.0,8.045e-05,2]
[405970523,1771481443996,-500.0,8.045e-05,2]
[405970524,1771481444006,-500.0,8.045e-05,2]
[405970525,1771481444016,-500.0,8.045e-05,2]
[405970526,1771481444025,-500.0,8.045e-05,2]
[405970527,1771481444035,-500.0,8.045e-05,2]
[405970528,1771481444044,-500.0,8.045e-05,2]
[405970529,1771481444054,-500.0,8.045e-05,2]
[405970530,1771481444063,-159.0,8.051e-05,2]
[405970531,1771481444073,-478.0,8.062e-05,2]
[405970532,1771481444083,-184.64602598,8.075e-05,2]
[405970533,1771481444092,-4181.26766745,8.075e-05,2]
[405970534,1771481444108,-2389.15347552,8.075e-05,2]
[405970535,1771481444119,-394.50371826,8.075e-05,2]
[405970536,1771481444916,-966.3271354,8.075e-05,2]
[405970537,1771481444928,-1180.75886899,8.075e-05,2]
[405970544,1771481446174,-887.97913438,8.075e-05,2]
[405970545,1771481446184,-150.99,8.075e-05,2]
[405970546,1771481446194,-151.0,8.1e-05,2]
[405970547,1771481446203,-719.04747942,8.1e-05,2]
[405970548,1771481446212,-390.0,8.121e-05,2]
[405970549,1771481446221,-151.0,8.155e-05,2]
[405970550,1771481446230,-745.65223616,8.155e-05,2]
[405970551,1771481446242,-894.0,8.179e-05,2]
[405970552,1771481446252,-151.0,8.21e-05,2]
[405970553,1771481446261,-773.2413689,8.21e-05,2]
[405970554,1771481446270,-500.0,8.219e-05,2]
[405970555,1771481446280,-427.0,8.219e-05,2]
[405970556,1771481446290,-500.0,8.219e-05,2]
[405970557,1771481446299,-796.0,8.219e-05,2]
[405970558,1771481446309,-150.0,8.219e-05,2]
[405970559,1771481446318,-500.0,8.219e-05,2]
[405970560,1771481446327,-1017.0,8.219e-05,2]
[405970561,1771481446336,-231.38936986,8.219e-05,2]
[405970563,1771481446345,-500.0,8.219e-05,2]
[405970565,1771481446354,-279.82902593,8.219e-05,2]
[405970580,1771481622646,3896.96,6.382e-05,2]
[405970581,1771481622837,3896.96,6.441e-05,2]
[405970582,1771481623040,3896.96,6.501e-05,2]
[405970583,1771481623255,3896.96,6.56e-05,2]
[405970584,1771481623459,3896.96,6.619e-05,2]
[405970585,1771481623677,3896.96,6.678e-05,2]
[405970586,1771481623878,3896.96,6.738e-05,2]
[405970587,1771481624065,3896.96,6.797e-05,2]
[405970588,1771481624256,3896.96,6.856e-05,2]
[405970589,1771481624442,3896.96,6.916e-05,2]
[405970590,1771481624927,3896.96,6.975e-05,2]
[405970591,1771481625124,3896.96,7.034e-05,2]
[405970592,1771481625457,3896.96,7.094e-05,2]
[405970593,1771481625650,3896.96,7.153e-05,2]
[405970594,1771481625863,3896.96,7.212e-05,2]
[405970595,1771481626073,3896.96,7.271e-05,2]
[405970596,1771481626262,3896.96,7.331e-05,2]
[405970597,1771481626674,3896.96,7.39e-05,2]
[405970598,1771481626884,3896.96,7.449e-05,2]
[405970599,1771481646744,155.0,7.449e-05,3]
[405970600,1771481709561,156.0,7.449e-05,3]
[405970601,1771481710312,150.0,0.00017202,36]
[405970602,1771481711078,150.0,0.00017202,36]
[405970603,1771481711853,162.0,0.00017202,36]
[405970604,1771481765542,156.0,7.449e-05,3]
[405970605,1771481825881,156.0,7.449e-05,3]
[405970606,1771481956817,1600.0,7.433e-05,2]
[405970607,1771481978445,500.0,7.434e-05,3]
[405970608,1771482448701,207.95223301,7.484e-05,2]
[405970609,1771482452357,373.9397054,7.484e-05,2]
[405970610,1771482551482,181.57484427,7.484e-05,2]
[405970617,1771482632254,-387.105,7.509e-05,2]
[405970618,1771482632267,-584.79955105,7.509e-05,2]
[405970619,1771482632283,-2925.05544895,7.509e-05,2]
[405970620,1771482632293,-214.0,7.509e-05,2]
[405970621,1771482632303,-1200.0,7.514e-05,2]
[405970622,1771482632312,-476.49995375,7.515e-05,2]
[405970623,1771482632323,-412.77728069,7.515e-05,2]
[405970624,1771482632337,-710.0,7.515e-05,2]
[405970625,1771482632350,-575.5876787,7.515e-05,2]
[405970626,1771482632372,-497.55228091,7.515e-05,2]
[405970627,1771482632391,-7685.54144071,7.515e-05,2]
[405970628,1771482632404,-3811.13458738,7.515e-05,2]
[405970629,1771482632415,-831.47677786,7.515e-05,2]